bitfinex-derivatives/quotes_BTCF0:USTF0_20251210
["timestamp","ask_amount","ask_price","bid_price","bid_amount"]
[1765405516004,0.05,92357.0,92356.0,0.2790046]
[1765405516517,0.05,92357.0,92356.0,0.31178872]
[1765405517413,0.18915,92357.0,92356.0,0.31278872]
[1765405517603,0.053,92357.0,92356.0,0.31278872]
[1765405520314,0.32277,92357.0,92356.0,0.31278872]
[1765405520522,0.053,92357.0,92356.0,0.81794872]
[1765405524117,0.32277,92357.0,92356.0,0.81794872]
[1765405524321,0.053,92357.0,92356.0,0.81794872]
[1765405526422,0.053,92357.0,92356.0,0.31278872]
[1765405526626,0.053,92357.0,92356.0,0.81786872]
[1765405530924,0.0315535,92357.0,92356.0,0.81786872]
[1765405531110,0.00108267,92365.0,92364.0,0.3361536]
[1765405531316,0.00108267,92365.0,92364.0,0.6969536]
[1765405531816,0.00108267,92365.0,92364.0,0.6265336]
[1765405532011,0.00108267,92365.0,92364.0,0.7003736]
[1765405532216,0.00408267,92365.0,92364.0,0.7013736]
[1765405532718,0.00408267,92365.0,92364.0,0.7043736]
[1765405533020,0.00208267,92365.0,92364.0,0.7053736]
[1765405533215,0.12791267,92365.0,92364.0,0.6315336]
[1765405533526,0.00208267,92365.0,92364.0,0.7092536]
[1765405534026,0.00208267,92365.0,92364.0,0.6315336]
[1765405534414,0.00208267,92365.0,92364.0,1.1364936]
[1765405534627,0.00108267,92365.0,92364.0,1.1344936]
[1765405534820,0.33259,92388.0,92387.0,0.25491]
[1765405535025,0.25756,92388.0,92387.0,0.7706909]
[1765405535427,0.25756,92388.0,92387.0,0.80368535]
[1765405536024,0.07373,92400.0,92389.0,0.25491]
[1765405536333,0.0845488,92406.0,92389.0,0.31709826]
[1765405536517,0.0845488,92406.0,92389.0,0.28790445]
[1765405537020,0.010819,92404.0,92389.0,0.28790445]
[1765405537226,0.0108189,92405.0,92389.0,0.28790445]
[1765405537422,0.00208237,92390.0,92389.0,0.28790445]
[1765405538033,0.25756,92412.0,92411.0,0.2657281]
[1765405538214,0.12583,92418.0,92417.0,0.2657274]
[1765405538525,0.371617,92421.0,92420.0,0.25491]
[1765405538727,0.268376,92429.0,92426.0,0.0108163]
[1765405538928,0.25756,92427.0,92426.0,0.2657263]
[1765405539236,0.12583,92427.0,92426.0,0.2657263]
[1765405539524,0.12583,92436.0,92435.0,0.25491]
[1765405539729,0.0845445,92442.0,92435.0,0.25491]
[1765405539730,0.25756,92442.0,92441.0,0.25491]
[1765405539928,0.33129,92448.0,92447.0,0.2657239]
[1765405540319,0.25756,92448.0,92447.0,0.2657239]
[1765405540516,0.25756,92448.0,92446.0,0.50488]
[1765405540517,0.33129,92463.0,92462.0,0.2657222]
[1765405540715,0.0010815,92465.0,92464.0,0.25491]
[1765405541328,0.1269115,92465.0,92464.0,0.25491]
[1765405541529,0.0010815,92465.0,92464.0,0.61571]
[1765405542025,0.0010815,92465.0,92464.0,0.68558]
[1765405542416,0.2596415,92465.0,92464.0,0.61871]
[1765405542818,0.2596415,92465.0,92464.0,1.12347]
[1765405543019,0.0020815,92465.0,92464.0,1.12347]
[1765405543328,0.2596415,92465.0,92464.0,1.12347]
[1765405543832,0.2586415,92465.0,92464.0,1.00206]
[1765405544045,0.2596415,92465.0,92464.0,1.12747]
[1765405544327,0.2596415,92465.0,92464.0,0.3678]
[1765405544527,0.2596415,92465.0,92464.0,0.007]
[1765405544727,0.2704533,92465.0,92464.0,0.007]
[1765405545416,0.2704533,92465.0,92464.0,0.00172445]
[1765405545622,0.2704533,92465.0,92443.0,0.34364]
[1765405545623,0.2683731,92454.0,92443.0,0.34364]
[1765405545824,0.6291731,92454.0,92443.0,0.34364]
[1765405546021,0.2683743,92444.0,92443.0,0.34364]
[1765405546227,0.25756,92444.0,92443.0,0.25491]
[1765405546422,0.07373,92448.0,92438.0,0.3608]
[1765405546423,0.33129,92439.0,92438.0,0.61571]
[1765405546631,0.33129,92439.0,92438.0,0.626525]
[1765405547428,0.33129,92439.0,92438.0,0.265725]
[1765405547631,0.33129,92439.0,92438.0,0.267725]
[1765405547934,0.33129,92439.0,92438.0,0.268725]
[1765405548724,0.33129,92439.0,92438.0,0.25791]
[1765405549231,0.33129,92439.0,92438.0,0.25691]
[1765405549734,0.33129,92439.0,92438.0,0.25591]
[1765405550126,0.33129,92439.0,92438.0,0.25691]
[1765405550434,0.33129,92439.0,92438.0,0.25591]
[1765405551030,0.25756,92439.0,92438.0,0.267725]
[1765405551231,0.25756,92439.0,92438.0,0.628525]
[1765405551549,0.25756,92446.0,92445.0,0.25491]
[1765405553730,0.25756,92446.0,92445.0,0.25591]
[1765405554129,0.268374,92446.0,92445.0,0.25591]
[1765405555632,0.25756,92446.0,92445.0,0.25591]
[1765405555831,0.268374,92446.0,92445.0,0.25591]
[1765405557636,0.2577217,92448.0,92447.0,0.25491]
[1765405558029,0.3321517,92448.0,92447.0,0.25491]
[1765405559433,0.0001617,92448.0,92447.0,0.25491]
[1765405559633,0.2539517,92448.0,92447.0,0.25491]
[1765405559928,0.1294717,92448.0,92447.0,0.25491]
[1765405560535,0.0011617,92448.0,92447.0,0.28782865]
[1765405560742,0.0011617,92448.0,92447.0,0.36782865]
[1765405561127,0.0010815,92465.0,92464.0,0.3241219]
[1765405561332,0.0010815,92465.0,92464.0,1.1893219]
[1765405561938,0.0108093,92487.0,92470.0,0.2603712]
[1765405562237,0.0108094,92486.0,92470.0,0.6211712]
[1765405562436,0.07443,92488.0,92470.0,0.6211712]
[1765405563044,0.07443,92480.0,92470.0,0.6211712]
[1765405563236,0.00121628,92471.0,92470.0,0.66703522]
[1765405563640,0.00321628,92471.0,92470.0,0.68203522]
[1765405563835,0.00257333,92471.0,92470.0,0.68203522]
[1765405564050,0.07443,92496.0,92489.0,0.24956]
[1765405564235,0.0108084,92494.0,92489.0,1.11472]
[1765405564434,0.07443,92496.0,92489.0,0.75392]
[1765405564939,0.1293912,92490.0,92489.0,0.75392]
[1765405565342,0.0010812,92490.0,92489.0,1.14763069]
[1765405565644,0.25387091,92515.0,92514.0,0.24956]
[1765405565843,0.25279,92510.0,92509.0,0.50436]
[1765405566033,0.25279,92510.0,92509.0,0.03290966]
[1765405566233,0.07443,92512.0,92505.0,0.0001622]
[1765405566234,0.25279,92506.0,92505.0,0.1286422]
[1765405566446,0.25279,92506.0,92505.0,0.78693287]
[1765405566842,0.32722,92512.0,92511.0,0.2603664]
[1765405567045,0.32722,92512.0,92511.0,0.29325707]
[1765405567238,0.00108091,92515.0,92514.0,0.24956]
[1765405567644,0.12939091,92515.0,92514.0,0.24956]
[1765405567836,0.25387091,92515.0,92514.0,0.24956]
[1765405568341,0.25279,92506.0,92505.0,0.9873622]
[1765405568542,0.25279,92506.0,92505.0,1.01991748]
[1765405568946,0.25279,92506.0,92505.0,0.89775748]
[1765405569141,0.25279,92506.0,92505.0,0.7539622]
[1765405569753,0.25279,92506.0,92505.0,0.7549622]
[1765405569937,0.25279,92506.0,92505.0,0.7559622]
[1765405570249,0.263597,92506.0,92505.0,0.7559622]
[1765405570752,0.013597,92506.0,92505.0,0.7559622]
[1765405570938,0.135907,92506.0,92505.0,0.7559622]
[1765405571138,0.1251,92506.0,92505.0,0.7559622]
[1765405571338,0.135907,92506.0,92505.0,0.7559622]
[1765405571552,0.135907,92506.0,92505.0,0.79003958]
[1765405572438,0.135907,92506.0,92505.0,1.18938963]
[1765405572645,0.135907,92506.0,92505.0,1.15083958]
[1765405572844,0.135907,92506.0,92505.0,0.03623958]
[1765405573148,0.896707,92506.0,92505.0,0.0021622]
[1765405573449,0.0108084,92494.0,92491.0,0.02889012]
[1765405573638,0.24081,92485.0,92484.0,0.02889012]
[1765405573845,0.24081,92485.0,92484.0,0.03356276]
[1765405574045,0.60161,92485.0,92484.0,0.03356276]
[1765405574449,0.2516195,92485.0,92484.0,0.03356276]
[1765405574858,0.2516195,92485.0,92484.0,0.03556276]
[1765405575156,0.2536195,92485.0,92484.0,0.05156276]
[1765405575559,0.6144195,92485.0,92484.0,0.05156276]
[1765405575850,0.6134195,92485.0,92484.0,0.03756276]
[1765405576857,0.6134195,92485.0,92475.0,0.0001622]
[1765405576858,0.2516205,92476.0,92475.0,0.0001622]
[1765405577057,0.6124205,92476.0,92475.0,0.0001622]
[1765405577466,0.61359448,92476.0,92475.0,0.0001622]
[1765405578050,0.61459448,92476.0,92475.0,0.0071622]
[1765405578661,0.61359448,92476.0,92475.0,0.0031622]
[1765405578856,0.61459448,92476.0,92475.0,0.0061622]
[1765405579060,0.61459448,92476.0,92475.0,0.0031622]
[1765405579359,0.61459448,92476.0,92475.0,0.2423622]
[1765405579758,0.25379448,92476.0,92475.0,0.1264522]
[1765405580062,0.25379448,92476.0,92475.0,0.0051622]
[1765405580357,0.25379448,92476.0,92475.0,0.0159728]
[1765405580662,0.25379448,92476.0,92475.0,0.0051622]
[1765405580864,0.25379448,92476.0,92475.0,0.0159728]
[1765405581162,0.00217398,92476.0,92475.0,0.3259928]
[1765405581365,0.00016189,92494.0,92493.0,0.3208285]
[1765405582167,0.12247189,92494.0,92493.0,0.3208285]
[1765405582766,0.12347189,92494.0,92493.0,0.3208285]
[1765405583261,0.13428029,92494.0,92493.0,0.3208285]
[1765405583764,0.12547189,92494.0,92493.0,0.3208285]
[1765405583947,0.00316189,92494.0,92493.0,0.3208285]
[1765405585146,0.00316189,92494.0,92493.0,0.3228285]
[1765405585353,0.01197029,92494.0,92493.0,0.38184457]
[1765405585553,0.00116189,92494.0,92493.0,0.38184457]
[1765405586150,0.00116189,92494.0,92493.0,0.3238285]
[1765405587163,0.25278029,92494.0,92493.0,0.003]
[1765405587462,0.25278029,92494.0,92493.0,0.3710873]
[1765405587864,0.25278029,92494.0,92493.0,0.31302]
[1765405588255,0.25278029,92494.0,92493.0,0.3710873]
[1765405588455,0.25278029,92494.0,92493.0,0.31302]
[1765405588659,0.25278029,92494.0,92493.0,0.37111223]
[1765405588861,0.25278029,92494.0,92493.0,0.40437505]
[1765405589076,0.24197189,92494.0,92493.0,0.40437505]
[1765405589266,0.00116189,92494.0,92493.0,0.40437505]
[1765405589466,0.00116189,92494.0,92493.0,0.34628282]
[1765405590156,0.13636189,92494.0,92493.0,0.34628282]
[1765405590468,0.26663189,92494.0,92493.0,0.40441052]
[1765405590766,0.26663189,92494.0,92493.0,0.40441112]
[1765405591270,0.26663189,92494.0,92493.0,0.34628282]
[1765405591870,0.26663189,92494.0,92493.0,0.27346282]
[1765405592369,0.26663189,92494.0,92493.0,0.35919282]
[1765405592564,0.26663189,92494.0,92493.0,0.41734792]
[1765405592763,0.26663189,92494.0,92493.0,0.35919282]
[1765405595276,0.26663189,92494.0,92493.0,0.03626282]
[1765405595468,0.26663189,92494.0,92493.0,0.07505663]
[1765405595666,0.26663189,92494.0,92493.0,0.31008282]
[1765405599270,0.26663189,92494.0,92493.0,0.33919363]
[1765405600272,0.26663189,92494.0,92493.0,0.31008282]
[1765405600864,0.26663189,92494.0,92493.0,0.33919513]
[1765405601171,0.26663189,92494.0,92493.0,0.31008282]
[1765405602170,0.26663189,92494.0,92493.0,0.33919705]
[1765405602773,0.00116189,92494.0,92493.0,0.33919705]
[1765405602961,0.00116189,92494.0,92493.0,0.33920352]
[1765405603163,0.00116189,92494.0,92493.0,0.31008282]
[1765405603674,0.00116189,92494.0,92493.0,1.20400352]
[1765405603871,0.00116189,92494.0,92493.0,1.17488282]
[1765405606878,0.13636189,92494.0,92493.0,1.17488282]
[1765405607078,0.00116189,92494.0,92493.0,1.17488282]
[1765405610072,0.00116189,92494.0,92493.0,1.14162]
[1765405611278,0.00116189,92494.0,92493.0,1.17378583]
[1765405611586,0.00116189,92494.0,92493.0,1.14162]
[1765405611781,0.00116189,92494.0,92493.0,1.17378583]
[1765405613178,0.00116189,92494.0,92493.0,1.21269497]
[1765405613379,0.00116189,92494.0,92493.0,1.17378583]
[1765405613584,0.00116189,92494.0,92493.0,1.21269484]
[1765405613976,0.00116189,92494.0,92493.0,0.85189484]
[1765405614171,0.00116189,92494.0,92493.0,0.81298583]
[1765405615280,0.26663189,92494.0,92493.0,0.03516583]
[1765405615481,0.26663189,92494.0,92493.0,0.33816689]
[1765405615777,0.26663189,92494.0,92493.0,0.30898583]
[1765405622089,0.00116189,92494.0,92493.0,0.30898583]
[1765405624195,0.26113189,92494.0,92493.0,0.30898583]
[1765405624382,0.26113189,92494.0,92493.0,0.03516583]
[1765405624685,0.26113189,92494.0,92483.0,0.05834123]
[1765405624686,0.2707789,92490.0,92489.0,0.02406758]
[1765405624994,0.2707789,92490.0,92489.0,0.03341196]
[1765405625377,0.2707805,92476.0,92475.0,0.0001622]
[1765405625887,0.6315805,92476.0,92475.0,0.0001622]
[1765405626580,0.6315805,92476.0,92475.0,0.0021622]
[1765405626979,0.270782,92463.0,92462.0,0.00013418]
[1765405627180,0.270782,92463.0,92462.0,0.13050418]
[1765405627590,0.270782,92463.0,92462.0,0.00013418]
[1765405628290,0.272782,92463.0,92462.0,0.01513418]
[1765405628989,0.273782,92463.0,92462.0,0.02813418]
[1765405632790,0.2783931,92454.0,92453.0,0.0001622]
[1765405632995,0.278394,92446.0,92445.0,0.3608]
[1765405633192,0.278394,92446.0,92428.0,0.39970901]
[1765405633193,0.278396,92429.0,92428.0,0.33228]
[1765405633381,0.639196,92429.0,92428.0,0.33228]
[1765405633581,0.639196,92429.0,92428.0,0.25542]
[1765405633791,0.63929395,92429.0,92428.0,0.33228]
[1765405634699,0.64029395,92429.0,92428.0,0.33228]
[1765405635497,0.63929395,92429.0,92428.0,0.33228]
[1765405635688,0.64529395,92429.0,92428.0,0.33328]
[1765405636200,0.64529395,92429.0,92428.0,0.25642]
[1765405636695,1.00109395,92429.0,92428.0,0.001]
[1765405636997,0.2783971,92420.0,92419.0,0.2555822]
[1765405637202,0.6391971,92420.0,92419.0,0.2555822]
[1765405638700,0.6421971,92420.0,92419.0,0.2555822]
[1765405639001,0.6461971,92420.0,92419.0,0.2555822]
[1765405640105,0.6501971,92420.0,92419.0,0.2555822]
[1765405640805,0.6431971,92420.0,92419.0,0.2555822]
[1765405641000,0.6501971,92420.0,92419.0,0.2555822]
[1765405641392,0.6461971,92420.0,92419.0,0.0001622]
[1765405641699,0.6501971,92420.0,92419.0,0.0001622]
[1765405641889,0.2783975,92416.0,92415.0,0.13114208]
[1765405642097,0.2783998,92397.0,92396.0,0.61622]
[1765405642295,0.27852986,92397.0,92396.0,0.36558899]
[1765405642492,0.27852986,92397.0,92396.0,0.08]
[1765405642692,0.27852986,92397.0,92390.0,0.25650237]
[1765405642693,0.2784005,92391.0,92390.0,0.25650237]
[1765405643601,0.2784005,92391.0,92390.0,0.13114237]
[1765405643804,0.2784005,92391.0,92390.0,0.00108237]
[1765405644001,0.2824005,92391.0,92390.0,0.13114237]
[1765405644404,0.2824005,92391.0,92390.0,0.25650237]
[1765405644608,0.2854005,92391.0,92390.0,0.25650237]
[1765405644806,0.2894005,92391.0,92390.0,0.25650237]
[1765405646208,0.2854005,92391.0,92390.0,0.25650237]
[1765405646412,0.2894005,92391.0,92390.0,0.25650237]
[1765405647512,0.2894005,92391.0,92390.0,0.00108237]
[1765405647717,0.28952547,92391.0,92390.0,0.00108237]
[1765405648015,0.2994015,92382.0,92381.0,0.0001623]
[1765405648319,0.66029997,92382.0,92381.0,0.0001623]
[1765405649421,0.66829997,92382.0,92381.0,0.2948723]
[1765405650228,0.66829997,92382.0,92381.0,0.0001623]
[1765405651723,0.66829997,92382.0,92381.0,0.2948723]
[1765405651926,0.66829997,92382.0,92381.0,0.0001623]
[1765405655931,0.66829997,92382.0,92381.0,0.1491223]
[1765405656228,0.66829997,92382.0,92379.0,0.00021628]
[1765405656229,0.29953,92380.0,92379.0,0.00021628]
[1765405656728,0.3103534,92366.0,92358.0,0.0941]
[1765405657030,0.6711534,92366.0,92365.0,0.29579267]
[1765405657326,0.6711534,92366.0,92365.0,0.00108267]
[1765405657735,0.67128041,92366.0,92365.0,0.00108267]
[1765405657931,0.67128041,92366.0,92365.0,0.29579267]
[1765405658233,0.67928041,92366.0,92365.0,0.29579267]
[1765405659619,0.68428041,92366.0,92365.0,0.15004267]
[1765405659931,0.68428041,92366.0,92365.0,0.38989267]
[1765405660123,0.68428041,92366.0,92365.0,0.29579267]
[1765405660432,0.68428041,92366.0,92365.0,0.38989267]
[1765405660630,0.67628041,92366.0,92365.0,0.38989267]
[1765405660826,0.68428041,92366.0,92365.0,0.38989267]
[1765405661033,0.67928041,92366.0,92365.0,0.38989267]
[1765405661227,0.67528041,92366.0,92365.0,0.38989267]
[1765405661432,0.68228041,92366.0,92365.0,0.38989267]
[1765405661825,0.67828041,92366.0,92365.0,0.38989267]
[1765405662024,0.68228041,92366.0,92365.0,0.38989267]
[1765405662629,0.67828041,92366.0,92365.0,0.38989267]
[1765405662832,0.67528041,92366.0,92365.0,0.38989267]
[1765405663028,0.68228041,92366.0,92365.0,0.38989267]
[1765405663228,0.68228041,92366.0,92365.0,0.4196119]
[1765405664121,0.67828041,92366.0,92365.0,0.3255119]
[1765405664321,0.68228041,92366.0,92365.0,0.3255119]
[1765405665118,0.67828041,92366.0,92365.0,0.3255119]
[1765405665325,0.68228041,92366.0,92365.0,0.3255119]
[1765405667032,0.67528041,92366.0,92365.0,0.3255119]
[1765405667234,0.68228041,92366.0,92365.0,0.3255119]
[1765405667943,0.68228041,92366.0,92365.0,0.4196119]
[1765405668434,0.67828041,92366.0,92365.0,0.4196119]
[1765405668635,0.68228041,92366.0,92365.0,0.4196119]
[1765405668829,0.01112701,92366.0,92365.0,0.4304354]
[1765405669329,0.01212701,92366.0,92365.0,0.4304354]
[1765405669634,0.31165701,92366.0,92365.0,0.4196119]
[1765405671643,0.01212701,92366.0,92365.0,0.4196119]
[1765405673131,0.01212701,92366.0,92365.0,0.45846824]
[1765405673429,0.01212701,92366.0,92365.0,0.4196119]
[1765405676533,0.01212701,92366.0,92365.0,0.47795313]
[1765405676741,0.01212701,92366.0,92365.0,0.4196119]
[1765405676932,0.01212701,92366.0,92365.0,0.9239719]
[1765405677141,0.01050371,92366.0,92365.0,0.98231313]
[1765405677340,0.01050371,92366.0,92365.0,0.9239719]
[1765405678142,0.01061809,92366.0,92365.0,0.9239719]
[1765405683143,0.01061809,92366.0,92365.0,0.98236375]
[1765405683544,0.01061809,92366.0,92365.0,0.9239719]
[1765405685144,0.00016239,92375.0,92374.0,0.2853525]
[1765405685340,0.13847,92396.0,92382.0,0.0737]
[1765405685545,0.5100899,92397.0,92396.0,0.27453]
[1765405685848,0.6480899,92397.0,92396.0,0.30424923]
[1765405686451,0.6480899,92397.0,92396.0,0.27453]
[1765405687951,0.6520899,92397.0,92396.0,0.27453]
[1765405688459,0.6480899,92397.0,92396.0,0.27453]
[1765405688653,0.3756199,92397.0,92396.0,0.27653]
[1765405689050,0.2912899,92397.0,92396.0,0.27653]
[1765405690861,0.30385,92341.0,92337.0,0.07776877]
[1765405691056,0.6178763,92341.0,92340.0,0.04704391]
[1765405691257,0.30385,92332.0,92331.0,0.05833389]
[1765405691445,0.66465,92332.0,92331.0,0.16749396]
[1765405691647,0.69079294,92332.0,92331.0,0.30652]
[1765405692346,0.69179294,92332.0,92331.0,0.31152]
[1765405692753,0.69379294,92332.0,92331.0,0.31752]
[1765405693162,0.38994294,92332.0,92331.0,0.4119]
[1765405694261,0.36000999,92332.0,92331.0,1.00622]
[1765405694975,0.38781242,92332.0,92331.0,1.00622]
[1765405696464,0.38781242,92332.0,92331.0,0.91622]
[1765405701559,0.36000999,92332.0,92331.0,0.91622]
[1765405702055,0.66385999,92332.0,92331.0,0.82184]
[1765405702462,0.36000999,92332.0,92331.0,0.82184]
[1765405709369,0.38851816,92332.0,92331.0,0.82184]
[1765405711461,0.61208816,92332.0,92331.0,0.82184]
[1765405711968,0.82539816,92332.0,92331.0,0.82184]
[1765405713272,0.61587817,92332.0,92331.0,0.82184]
[1765405715665,0.61587817,92332.0,92331.0,0.8326675]
[1765405716575,0.82918817,92332.0,92331.0,0.8326675]
[1765405716763,0.82918817,92332.0,92331.0,0.3283475]
[1765405716970,0.82918817,92332.0,92331.0,0.31752]
[1765405718575,0.82918817,92332.0,92331.0,0.3283475]
[1765405719576,0.82918817,92332.0,92331.0,0.31752]
[1765405722878,0.61587817,92332.0,92331.0,0.31752]
[1765405723268,0.39230817,92332.0,92331.0,0.31752]
[1765405725976,0.82918817,92332.0,92331.0,0.31752]
[1765405727470,0.84001557,92332.0,92331.0,0.31752]
[1765405728992,0.82918817,92332.0,92331.0,0.31752]
[1765405736297,0.8263043,92332.0,92331.0,0.31752]
[1765405740700,0.6129943,92332.0,92331.0,0.31752]
[1765405740894,0.3894243,92332.0,92331.0,0.31752]
[1765405741595,0.6015443,92332.0,92331.0,0.31752]
[1765405742196,0.3894243,92332.0,92331.0,0.31752]
[1765405743205,0.6015443,92332.0,92331.0,0.31752]
[1765405744703,0.8029843,92332.0,92331.0,0.31752]
[1765405746404,0.8029843,92332.0,92331.0,0.40752]
[1765405748803,0.3894243,92332.0,92331.0,0.40752]
[1765405748997,9e-08,92341.0,92340.0,0.5043664]
[1765405749204,0.07744091,92361.0,92360.0,0.53178]
[1765405749394,0.41356,92368.0,92367.0,0.41271]
[1765405750601,0.41456,92368.0,92367.0,0.41271]
[1765405751205,0.41556,92368.0,92367.0,0.41271]
[1765405751806,0.41656,92368.0,92367.0,0.45188821]
[1765405752502,0.41656,92368.0,92367.0,0.42271]
[1765405753005,0.41656,92368.0,92367.0,0.45188821]
[1765405753311,0.41656,92368.0,92367.0,0.92703]
[1765405754599,0.41656,92368.0,92367.0,0.95584188]
[1765405761208,0.003,92368.0,92367.0,0.95584188]
[1765405761601,0.47642,92368.0,92367.0,0.95584188]
[1765405764612,0.47642,92368.0,92367.0,1.04584188]
[1765405765000,0.24756,92368.0,92367.0,1.04584188]
[1765405766114,0.003,92368.0,92367.0,1.04584188]
[1765405767415,0.003,92368.0,92367.0,1.07502009]
[1765405767600,0.003,92368.0,92367.0,1.04584188]
[1765405767999,0.003,92368.0,92367.0,1.05666518]
[1765405768405,0.003,92368.0,92367.0,1.08584339]
[1765405769710,0.003,92368.0,92367.0,1.05666518]
[1765405773423,0.003,92368.0,92367.0,1.11508066]
[1765405774324,0.003,92368.0,92367.0,1.05666518]
[1765405777426,0.22886,92368.0,92367.0,1.05666518]
[1765405778732,0.5836,92368.0,92367.0,0.12881188]
[1765405779027,0.5836,92368.0,92367.0,0.54289188]
[1765405781023,0.5836,92368.0,92367.0,0.60123241]
[1765405781222,0.5836,92368.0,92367.0,0.54289188]
[1765405783030,0.5836,92368.0,92367.0,0.60123241]
[1765405783430,0.5836,92368.0,92367.0,0.54289188]
[1765405783627,0.5836,92368.0,92367.0,0.5720929]
[1765405783933,0.5836,92368.0,92367.0,0.54289188]
[1765405784136,0.9444,92368.0,92367.0,0.54289188]
[1765405785122,0.9444,92368.0,92367.0,0.98896188]
[1765405786716,0.3638,92368.0,92367.0,0.98896188]
[1765405786922,0.003,92368.0,92367.0,1.10789658]
[1765405787433,0.003,92368.0,92367.0,1.06896188]
[1765405793232,0.003,92368.0,92367.0,1.10786966]
[1765405795536,0.003,92368.0,92367.0,1.06896188]
[1765405796731,0.003,92368.0,92367.0,1.10786966]
[1765405799934,0.003,92368.0,92367.0,1.06896188]
[1765405801136,0.00016239,92377.0,92376.0,0.4479022]
[1765405801340,0.00016239,92377.0,92376.0,1.0098938]
[1765405801641,0.42049239,92377.0,92376.0,0.7937538]
[1765405801840,0.42049239,92377.0,92376.0,0.75375188]
[1765405802137,0.83131449,92377.0,92376.0,0.02881188]
[1765405802341,0.4311531,92369.0,92368.0,0.94108]
[1765405802535,0.7919531,92369.0,92368.0,0.53401275]
[1765405802736,0.7919531,92369.0,92368.0,0.75495275]
[1765405803438,0.7929531,92369.0,92368.0,0.54401275]
[1765405804539,1.1929531,92369.0,92361.0,0.0389063]
[1765405804838,0.42033,92353.0,92352.0,0.05834053]
[1765405805039,0.431155,92352.0,92351.0,0.05834053]
[1765405805336,0.0108253,92350.0,92349.0,0.05834053]
[1765405805541,0.0108253,92350.0,92347.0,5.4e-07]
[1765405805542,0.42033,92348.0,92347.0,5.4e-07]
[1765405805743,0.42033,92341.0,92340.0,0.39964]
[1765405805945,0.4311563,92341.0,92340.0,0.39964]
[1765405806650,0.42033,92339.0,92338.0,0.00016239]
[1765405808239,0.42633,92339.0,92338.0,0.43824239]
[1765405808641,0.42633,92339.0,92338.0,0.43724239]
[1765405808642,0.42033,92339.0,92338.0,0.43724239]
[1765405808845,0.42633,92339.0,92338.0,0.43824239]
[1765405809441,0.43533,92339.0,92338.0,0.43824239]
[1765405810049,0.42633,92339.0,92338.0,0.43824239]
[1765405810346,0.014,92339.0,92338.0,0.43824239]
[1765405810540,0.45517,92339.0,92338.0,0.43824239]
[1765405810932,0.23035,92339.0,92338.0,0.43824239]
[1765405811137,0.45517,92339.0,92338.0,0.43824239]
[1765405811348,0.44917,92339.0,92338.0,0.43724239]
[1765405811537,0.44917,92339.0,92338.0,0.43924239]
[1765405811735,0.3608,92359.0,92356.0,0.4631146]
[1765405811938,0.3608,92365.0,92356.0,0.9671946]
[1765405812141,0.44117,92384.0,92381.0,0.0108216]
[1765405812336,0.44117,92382.0,92381.0,0.4631116]
[1765405813246,0.44117,92382.0,92381.0,0.4641116]
[1765405814242,0.44417,92382.0,92381.0,0.4641116]
[1765405814646,0.44517,92382.0,92381.0,0.4641116]
[1765405814838,0.44817,92382.0,92381.0,0.4641116]
[1765405815442,0.44417,92382.0,92381.0,0.4631116]
[1765405815642,0.44717,92382.0,92381.0,0.4641116]
[1765405817855,0.006,92382.0,92381.0,0.4641116]
[1765405825255,0.006,92382.0,92381.0,0.49271775]
[1765405827153,0.21651239,92391.0,92390.0,0.4631106]
[1765405827763,0.44133239,92391.0,92390.0,0.4631106]
[1765405828352,0.44133239,92391.0,92390.0,0.4641106]
[1765405828553,0.44633239,92391.0,92390.0,0.4641106]
[1765405828856,0.44633239,92391.0,92390.0,0.45329]
[1765405829365,0.44933239,92391.0,92390.0,0.45329]
[1765405833959,0.44933239,92391.0,92390.0,0.4641106]
[1765405836161,0.00816239,92391.0,92390.0,0.4641106]
[1765405837465,0.23040239,92391.0,92390.0,0.4641106]
[1765405837768,0.00816239,92391.0,92390.0,0.4641106]
[1765405839072,0.23040239,92391.0,92390.0,0.4641106]
[1765405839263,0.23040239,92391.0,92390.0,0.49311554]
[1765405839759,0.00816239,92391.0,92390.0,0.49311554]
[1765405839960,0.23040239,92391.0,92390.0,0.49311554]
[1765405841269,0.44992239,92391.0,92390.0,0.49311554]
[1765405842769,0.135218,92412.0,92408.0,0.4173685]
[1765405842770,0.80256,92409.0,92408.0,0.4173685]
[1765405843777,0.80256,92409.0,92408.0,0.4183685]
[1765405844072,0.81056,92409.0,92408.0,0.4183685]
[1765405844868,0.81456,92409.0,92408.0,0.4183685]
[1765405847567,0.3728,92409.0,92408.0,0.4183685]
[1765405847770,0.012,92409.0,92408.0,0.52802403]
[1765405848075,0.22240239,92418.0,92417.0,0.4173674]
[1765405848278,0.22240239,92418.0,92417.0,0.95086293]
[1765405848981,0.00016239,92418.0,92417.0,0.95086293]
[1765405849288,0.80256,92427.0,92426.0,0.4173664]
[1765405849468,0.80256,92427.0,92426.0,0.95086193]
[1765405850979,0.58304,92427.0,92426.0,0.95086193]
[1765405851372,0.80256,92427.0,92426.0,0.95086193]
[1765405851576,0.80256,92427.0,92426.0,0.95186193]
[1765405853078,0.80356,92427.0,92426.0,0.95186193]
[1765405853782,0.44276,92427.0,92426.0,0.95186193]
[1765405857586,0.001,92427.0,92426.0,0.95186193]
[1765405858377,0.22324,92427.0,92426.0,0.95186193]
[1765405858779,0.42881,92427.0,92426.0,0.95186193]
[1765405859888,0.00016229,92436.0,92435.0,0.5021553]
[1765405860088,0.00108179,92440.0,92435.0,0.5021553]
[1765405860089,0.00108179,92440.0,92439.0,0.4207049]
[1765405860279,0.19308179,92440.0,92439.0,0.45036043]
[1765405860476,0.00108179,92440.0,92439.0,0.45036043]
[1765405860795,0.00108179,92440.0,92439.0,0.53036043]
[1765405861189,0.39773163,92449.0,92448.0,0.4207038]
[1765405861390,0.39773163,92449.0,92448.0,0.9243838]
[1765405861885,0.39773163,92449.0,92448.0,1.0396638]
[1765405862492,0.39973163,92449.0,92448.0,1.0396638]
[1765405862992,0.19416163,92449.0,92448.0,1.07047683]
[1765405863188,0.39973163,92449.0,92448.0,1.07047683]
[1765405863877,0.40373163,92449.0,92448.0,1.07047683]
[1765405864678,0.40373163,92449.0,92448.0,0.94438303]
[1765405867285,0.76453163,92449.0,92448.0,0.94438303]
[1765405868488,0.40373163,92449.0,92448.0,0.94438303]
[1765405871892,0.76453163,92449.0,92448.0,0.95519683]
[1765405872091,0.40373163,92449.0,92448.0,0.95519683]
[1765405873195,0.41454533,92449.0,92448.0,0.95519683]
[1765405873388,0.41454533,92449.0,92448.0,0.94438303]
[1765405873389,0.77534533,92449.0,92448.0,0.94438303]
[1765405873589,0.77234533,92449.0,92448.0,0.94438303]
[1765405873994,0.77034533,92449.0,92448.0,0.94538303]